bitfinex-derivatives/quotes_BTCF0:USTF0_20241221
["timestamp","ask_amount","ask_price","bid_price","bid_amount"]
[1734786241983,0.051392,97325.0,97324.0,0.001]
[1734786242189,0.051392,97325.0,97313.0,0.54544071]
[1734786242190,0.051398,97314.0,97313.0,0.54492071]
[1734786242389,0.05314263,97314.0,97313.0,0.54492071]
[1734786242790,0.05316194,97314.0,97313.0,0.3608]
[1734786242990,0.0514,97310.0,97309.0,0.18412071]
[1734786243189,0.051403,97304.0,97303.0,0.24589244]
[1734786243790,0.051403,97304.0,97294.0,0.30539434]
[1734786243991,0.412208,97295.0,97294.0,0.30539434]
[1734786244195,0.412208,97295.0,97281.0,0.3608]
[1734786244395,0.051414,97282.0,97281.0,0.3608]
[1734786244788,0.051416,97279.0,97278.0,0.24561354]
[1734786244989,0.05317994,97279.0,97278.0,0.24561354]
[1734786245896,0.05317994,97279.0,97274.0,0.05305992]
[1734786246091,0.00176394,97279.0,97277.0,0.051417]
[1734786246596,0.00176394,97279.0,97278.0,0.003]
[1734786248292,0.00176394,97279.0,97277.0,0.054417]
[1734786248487,0.00206006,97278.0,97277.0,0.054417]
[1734786248993,0.00206006,97278.0,97277.0,0.16701456]
[1734786249194,0.051412,97288.0,97284.0,0.04905682]
[1734786249402,0.051412,97288.0,97285.0,0.0884]
[1734786249597,0.3608,97299.0,97286.0,0.051412]
[1734786249897,0.05141,97292.0,97286.0,0.066852]
[1734786250487,0.05141,97292.0,97286.0,0.01544]
[1734786250687,0.412206,97299.0,97286.0,0.01544]
[1734786250889,0.3608,97299.0,97287.0,0.0148]
[1734786251094,0.1200381,97310.0,97309.0,0.0514]
[1734786251502,0.15040437,97317.0,97316.0,0.051397]
[1734786251794,0.15040437,97317.0,97316.0,0.412197]
[1734786252000,0.15040437,97317.0,97316.0,0.3608]
[1734786252387,0.15040437,97317.0,97316.0,0.412197]
[1734786252588,0.0744,97318.0,97316.0,0.412197]
[1734786252993,0.002,97317.0,97316.0,0.413197]
[1734786254203,0.002,97317.0,97316.0,0.3618]
[1734786254398,0.053396,97317.0,97316.0,0.3618]
[1734786254897,0.002,97317.0,97316.0,0.3618]
[1734786256194,0.00318352,97317.0,97316.0,0.3618]
[1734786257002,0.00347932,97317.0,97316.0,0.3618]
[1734786257403,0.00370588,97317.0,97316.0,0.3618]
[1734786257594,0.00370588,97317.0,97316.0,0.47901115]
[1734786260405,0.00370588,97317.0,97316.0,0.3618]
[1734786261502,0.00370588,97317.0,97316.0,0.46890247]
[1734786261691,0.36450588,97317.0,97316.0,0.10810247]
[1734786261896,0.36450588,97317.0,97289.0,0.3608]
[1734786262095,0.3608,97302.0,97289.0,0.3608]
[1734786262296,0.00170588,97296.0,97281.0,0.0943]
[1734786262497,0.051411,97289.0,97286.0,0.3668231]
[1734786262902,0.00170588,97296.0,97286.0,0.3668231]
[1734786263109,0.00170588,97296.0,97289.0,0.001]
[1734786263413,0.00170588,97293.0,97290.0,0.05141]
[1734786263796,0.00170588,97293.0,97291.0,0.05141]
[1734786264001,0.00170588,97293.0,97292.0,0.3608]
[1734786264509,0.329897,97316.0,97310.0,0.051399]
[1734786264704,0.329897,97316.0,97309.0,0.3608]
[1734786265010,0.142597,97316.0,97309.0,0.3608]
[1734786265308,0.20179937,97320.0,97314.0,0.051397]
[1734786265806,0.051392,97324.0,97309.0,0.3608]
[1734786266003,0.051392,97324.0,97317.0,0.412196]
[1734786266506,0.18069854,97351.0,97317.0,0.47056883]
[1734786266713,0.051383,97342.0,97340.0,0.051384]
[1734786267300,0.15040437,97350.0,97331.0,0.3608]
[1734786267510,0.051383,97343.0,97335.0,0.051386]
[1734786267708,0.051383,97343.0,97336.0,0.051386]
[1734786267907,0.051383,97343.0,97331.0,0.3608]
[1734786268115,0.15040437,97350.0,97348.0,0.051379]
[1734786268311,0.3608,97354.0,97341.0,0.3608]
[1734786268507,0.3608,97354.0,97351.0,0.051378]
[1734786269014,0.05138,97348.0,97345.0,0.051381]
[1734786269307,0.05138,97348.0,97346.0,0.05138]
[1734786269516,0.051388,97332.0,97331.0,0.3608]
[1734786269709,0.05139,97329.0,97324.0,0.051392]
[1734786270012,0.1911,97347.0,97329.0,0.05139]
[1734786270013,0.07191,97332.0,97329.0,0.05139]
[1734786270204,0.123298,97332.0,97329.0,0.05139]
[1734786270615,0.07191,97332.0,97331.0,0.3608]
[1734786271001,0.07191,97332.0,97331.0,0.47762892]
[1734786271406,0.07491,97332.0,97331.0,0.3608]
[1734786271707,0.07491,97332.0,97331.0,0.46798074]
[1734786271905,0.07191,97332.0,97331.0,0.46998074]
[1734786272515,0.07191,97332.0,97331.0,0.46798074]
[1734786273517,0.07191,97332.0,97331.0,0.46898074]
[1734786273703,0.07191,97332.0,97331.0,0.3618]
[1734786273911,0.07191,97332.0,97331.0,0.001]
[1734786274309,0.123298,97332.0,97331.0,0.001]
[1734786274715,0.126298,97332.0,97331.0,0.001]
[1734786275120,0.07491,97332.0,97322.0,0.01544]
[1734786275307,0.07491,97332.0,97321.0,0.3608]
[1734786275308,0.07491,97332.0,97313.0,0.051398]
[1734786275509,0.051394,97320.0,97313.0,0.051398]
[1734786275716,0.07491,97332.0,97310.0,0.37624]
[1734786275912,0.051401,97308.0,97283.0,0.051414]
[1734786276112,0.051404,97301.0,97300.0,0.01544]
[1734786277313,0.051404,97301.0,97276.0,0.3608]
[1734786277519,0.051417,97277.0,97276.0,0.3608]
[1734786277823,0.051417,97277.0,97275.0,0.01544]
[1734786278318,0.051417,97277.0,97276.0,0.006]
[1734786278817,0.051417,97277.0,97276.0,0.011]
[1734786279916,0.051417,97277.0,97276.0,0.005]
[1734786280223,0.051417,97277.0,97275.0,0.01844]
[1734786280413,0.051417,97277.0,97275.0,0.02344]
[1734786280723,0.051417,97277.0,97276.0,0.003]
[1734786280929,0.051417,97277.0,97276.0,0.008]
[1734786281521,0.051417,97277.0,97275.0,0.01544]
[1734786281522,0.051416,97279.0,97275.0,0.008]
[1734786281823,0.051418,97276.0,97275.0,0.008]
[1734786282220,0.051418,97276.0,97274.0,0.00010006]
[1734786282416,0.051429,97255.0,97253.0,0.01544]
[1734786283313,0.051432,97249.0,97243.0,0.051435]
[1734786284016,0.05152358,97254.0,97253.0,0.005]
[1734786284513,0.05152358,97254.0,97253.0,0.013]
[1734786284715,0.05152358,97254.0,97253.0,0.008]
[1734786285021,0.05152358,97254.0,97244.0,0.00854231]
[1734786285022,0.051434,97245.0,97244.0,0.00854231]
[1734786286019,0.00509458,97254.0,97250.0,0.051431]
[1734786286215,0.00509458,97254.0,97253.0,0.3608]
[1734786286414,0.00609458,97254.0,97253.0,0.3608]
[1734786286824,0.00609458,97254.0,97253.0,0.47268032]
[1734786287327,0.00109458,97254.0,97253.0,0.56578032]
[1734786287518,0.00509458,97254.0,97253.0,0.56578032]
[1734786287824,0.051419,97275.0,97253.0,0.56578032]
[1734786288124,0.051419,97275.0,97268.0,0.051421]
[1734786288319,0.051419,97275.0,97270.0,0.051421]
[1734786289525,0.051419,97273.0,97270.0,0.051421]
[1734786289819,0.051419,97273.0,97271.0,0.01544]
[1734786290924,0.053419,97273.0,97271.0,0.01544]
[1734786291123,0.002,97273.0,97271.0,0.06686]
[1734786291515,0.005,97273.0,97271.0,0.06686]
[1734786291824,0.004,97273.0,97271.0,0.06686]
[1734786292321,0.055419,97273.0,97271.0,0.01544]
[1734786292713,0.055419,97273.0,97261.0,0.01544]
[1734786292913,0.051425,97262.0,97261.0,0.01544]
[1734786293425,0.15220115,97271.0,97247.0,0.01544]
[1734786293426,0.051432,97250.0,97247.0,0.01544]
[1734786293627,0.3608,97264.0,97247.0,0.01544]
[1734786293836,0.051432,97248.0,97247.0,0.01544]
[1734786296024,0.051432,97248.0,97247.0,0.01644]
[1734786296720,0.053432,97248.0,97247.0,0.01544]
[1734786296920,0.053432,97248.0,97244.0,0.00154231]
[1734786296921,0.051434,97245.0,97244.0,0.00154231]
[1734786297120,0.051442,97230.0,97228.0,0.066883]
[1734786297325,0.051442,97230.0,97229.0,0.01544]
[1734786297924,0.123432,97230.0,97229.0,0.01544]
[1734786298323,0.07199,97230.0,97229.0,0.01544]
[1734786299631,0.07199,97230.0,97229.0,0.01944]
[1734786299827,0.07199,97230.0,97229.0,0.02244]
[1734786302128,0.36156,97246.0,97229.0,0.13571291]
[1734786302324,0.05143,97252.0,97244.0,0.051434]
[1734786302629,0.0904513,97264.0,97259.0,0.051426]
[1734786302818,0.0904513,97264.0,97262.0,0.051425]
[1734786303022,0.0904513,97264.0,97259.0,0.3608]
[1734786303221,0.051428,97256.0,97255.0,0.051428]
[1734786303421,0.0904513,97266.0,97254.0,0.3608]
[1734786303730,0.0904513,97266.0,97264.0,0.051424]
[1734786304133,0.00080001,97284.0,97265.0,0.10901656]
[1734786304335,0.051414,97284.0,97281.0,0.051415]
[1734786304532,0.051411,97288.0,97286.0,0.051412]
[1734786304924,0.15040437,97295.0,97293.0,0.051408]
[1734786305328,0.15040437,97295.0,97294.0,0.11728506]
[1734786305534,0.18069854,97304.0,97295.0,0.051408]
[1734786305735,0.18069854,97304.0,97303.0,0.412203]
[1734786306039,0.18069854,97323.0,97303.0,0.47342742]
[1734786306336,0.18069854,97323.0,97322.0,0.412193]
[1734786307132,0.18269854,97323.0,97322.0,0.52174817]
[1734786307630,0.002,97323.0,97322.0,0.52174817]
[1734786308025,0.18069854,97364.0,97356.0,0.051375]
[1734786308232,0.18069854,97364.0,97363.0,0.3608]
[1734786308434,0.54149854,97364.0,97343.0,0.3608]
[1734786308618,0.051376,97356.0,97348.0,0.051379]
[1734786308823,0.051376,97356.0,97351.0,0.3608]
[1734786309033,0.051371,97364.0,97351.0,0.3608]
[1734786309224,0.00048,97366.0,97361.0,0.3608]
[1734786309426,0.006,97364.0,97363.0,0.001]
[1734786309626,0.057371,97364.0,97363.0,0.001]
[1734786309938,0.00048,97366.0,97361.0,0.3608]
[1734786310528,0.00048,97366.0,97363.0,0.001]
[1734786310529,0.006,97364.0,97363.0,0.001]
[1734786310730,0.057371,97364.0,97363.0,0.001]
[1734786310939,0.006,97364.0,97363.0,0.001]
[1734786312127,0.009,97364.0,97363.0,0.001]
[1734786312529,0.309,97364.0,97339.0,0.3608]
[1734786312835,0.3608,97360.0,97348.0,0.3608]
[1734786313135,0.15220115,97360.0,97340.0,0.051383]
[1734786313745,0.15220115,97350.0,97339.0,0.3608]
[1734786313935,0.051383,97341.0,97339.0,0.3608]
[1734786314135,0.15220115,97350.0,97330.0,0.01544]
[1734786314136,0.3608,97340.0,97330.0,0.01544]
[1734786314338,0.051389,97331.0,97330.0,0.01544]
[1734786314536,0.051392,97325.0,97318.0,0.01544]
[1734786314841,0.051395,97319.0,97318.0,0.01544]
[1734786315039,0.3608,97328.0,97311.0,0.3608]
[1734786315237,0.051396,97316.0,97311.0,0.3608]
[1734786315438,0.00044,97316.0,97311.0,0.3608]
[1734786315634,0.00044,97316.0,97314.0,0.051397]
[1734786315830,0.00044,97316.0,97315.0,0.11272925]
[1734786316741,0.001,97340.0,97322.0,0.051393]
[1734786316943,0.051387,97334.0,97324.0,0.3608]
[1734786317743,0.051384,97340.0,97331.0,0.051388]
[1734786318050,0.003,97340.0,97339.0,0.3608]
[1734786318434,0.003,97340.0,97339.0,0.47310856]
[1734786318638,0.051372,97363.0,97339.0,0.47310856]
[1734786318832,0.051372,97363.0,97352.0,0.3608]
[1734786319034,0.051372,97363.0,97339.0,0.47310856]
[1734786319035,0.00048,97366.0,97360.0,0.3608]
[1734786319332,0.051378,97352.0,97350.0,0.3608]
[1734786321252,0.054378,97352.0,97350.0,0.3608]
[1734786322245,0.003,97352.0,97350.0,0.3618]
[1734786322451,0.003,97352.0,97350.0,0.413178]
[1734786324745,0.054378,97352.0,97350.0,0.3618]
[1734786324943,0.054378,97352.0,97350.0,0.001]
[1734786325435,0.0978,97351.0,97332.0,0.412188]
[1734786325640,0.3608,97345.0,97332.0,0.3608]
[1734786325948,0.051387,97335.0,97332.0,0.3608]
[1734786326751,0.051387,97335.0,97333.0,0.051387]
[1734786326939,0.051388,97333.0,97332.0,0.3608]
[1734786327337,0.051388,97333.0,97332.0,0.3618]
[1734786328545,0.05138,97348.0,97345.0,0.051381]
[1734786328842,0.051375,97356.0,97345.0,0.051381]
[1734786329048,0.051378,97351.0,97347.0,0.05138]
[1734786329243,0.36156,97357.0,97353.0,0.051377]
[1734786329244,0.051375,97356.0,97353.0,0.051377]
[1734786329444,0.36160001,97357.0,97344.0,0.3608]
[1734786329746,0.05138,97347.0,97340.0,0.051384]
[1734786329944,0.051381,97345.0,97340.0,0.051384]
[1734786330145,0.051381,97345.0,97341.0,0.01544]
[1734786330440,0.051383,97343.0,97341.0,0.01544]
[1734786330639,0.051383,97343.0,97341.0,0.066823]
[1734786332049,0.001,97357.0,97341.0,0.066823]
[1734786332244,0.051375,97358.0,97352.0,0.051377]
[1734786332444,0.051375,97357.0,97352.0,0.051377]
[1734786332749,0.051375,97357.0,97341.0,0.10864]
[1734786333044,0.051375,97357.0,97354.0,0.051376]
[1734786333240,0.051375,97357.0,97355.0,0.051376]
[1734786334449,0.051377,97353.0,97352.0,0.001]
[1734786335154,0.3608,97362.0,97343.0,0.051382]
[1734786335155,0.05138,97347.0,97343.0,0.051382]
[1734786335338,0.05138,97347.0,97344.0,0.051382]
[1734786335539,0.05138,97347.0,97345.0,0.051381]
[1734786336454,0.05238,97347.0,97345.0,0.051381]
[1734786337842,0.11977518,97353.0,97352.0,0.051377]
[1734786338354,0.15130218,97360.0,97359.0,0.051374]
[1734786338540,0.15130218,97360.0,97359.0,0.412174]
[1734786339854,0.15230218,97360.0,97359.0,0.413174]
[1734786340042,0.001,97360.0,97359.0,0.413174]
[1734786350055,0.001,97360.0,97359.0,0.428614]
[1734786352654,0.001,97360.0,97359.0,0.3618]
[1734786353348,0.001,97360.0,97359.0,0.001]
[1734786356157,0.051378,97351.0,97349.0,0.37624]
[1734786356360,0.051378,97351.0,97349.0,0.3608]
[1734786356550,0.095,97350.0,97349.0,0.3608]
[1734786357253,0.095,97350.0,97332.0,0.2449359]
[1734786357254,0.4558,97350.0,97332.0,0.2449359]
[1734786357456,0.10131594,97342.0,97332.0,0.2449359]
[1734786357657,0.3608,97342.0,97332.0,0.2449359]
[1734786357857,0.05139,97329.0,97328.0,0.3608]
[1734786358262,0.3608,97342.0,97328.0,0.3608]
[1734786358568,0.3608,97342.0,97331.0,0.051388]
[1734786358569,0.051387,97335.0,97331.0,0.051388]
[1734786358750,0.36256,97342.0,97328.0,0.3608]
[1734786358954,0.051388,97332.0,97328.0,0.3608]
[1734786359261,0.051388,97332.0,97328.0,0.3628]
[1734786359759,0.051388,97332.0,97328.0,0.3648]
[1734786360263,0.051389,97331.0,97328.0,0.3648]
[1734786360459,0.05139,97329.0,97328.0,0.002]
[1734786360659,0.05139,97329.0,97328.0,0.003]
[1734786360855,0.05139,97329.0,97328.0,0.001]
[1734786361656,0.05139,97329.0,97328.0,0.002]
[1734786361863,0.051386,97336.0,97328.0,0.002]
[1734786362159,0.1885,97341.0,97328.0,0.002]
[1734786362356,0.05138,97347.0,97332.0,0.3608]
[1734786362559,0.05138,97347.0,97343.0,0.051382]
[1734786362756,0.05138,97347.0,97332.0,0.3608]
[1734786362757,0.12108139,97339.0,97336.0,0.051386]
[1734786362949,0.12108139,97339.0,97332.0,0.3608]
[1734786363464,0.12108139,97339.0,97337.0,0.051385]
[1734786363966,0.001,97336.0,97332.0,0.3608]
[1734786364462,0.37111948,97354.0,97332.0,0.3608]
[1734786364663,0.002,97339.0,97337.0,0.051385]
[1734786365055,0.051382,97344.0,97337.0,0.051385]
[1734786365463,0.37111948,97354.0,97337.0,0.051385]
[1734786365762,0.051385,97339.0,97337.0,0.051385]
[1734786365963,0.053385,97339.0,97338.0,0.3608]
[1734786366557,0.002,97339.0,97338.0,0.3608]
[1734786367163,0.051384,97340.0,97338.0,0.3608]
[1734786367863,0.002,97339.0,97338.0,0.3608]
[1734786368366,0.051384,97340.0,97338.0,0.412185]
[1734786368577,0.053384,97340.0,97338.0,0.412185]
[1734786369363,0.002,97340.0,97338.0,0.412185]
[1734786369560,0.002,97340.0,97339.0,0.11740792]
[1734786369757,0.002,97340.0,97338.0,0.412785]
[1734786369962,0.002,97340.0,97339.0,0.01544]
[1734786370274,0.05138,97348.0,97346.0,0.05138]
[1734786370473,0.05138,97348.0,97347.0,0.3608]
[1734786370863,0.12108139,97361.0,97347.0,0.3608]
[1734786371168,0.12108139,97361.0,97360.0,0.051373]
[1734786371471,0.051375,97357.0,97356.0,0.3608]
[1734786371966,0.002,97361.0,97356.0,0.3608]
[1734786372269,0.002,97361.0,97359.0,0.051374]
[1734786373364,0.00048,97366.0,97357.0,0.0955]
[1734786373661,0.00048,97366.0,97365.0,0.412171]
[1734786374064,0.00048,97366.0,97365.0,0.52995181]
[1734786374868,0.051362,97381.0,97365.0,0.47958081]
[1734786375171,0.051362,97381.0,97378.0,0.3608]
[1734786375375,0.12108139,97387.0,97378.0,0.3608]
[1734786375571,0.12108139,97387.0,97383.0,0.051361]
[1734786376268,0.15130218,97397.0,97396.0,0.051354]
[1734786376473,0.12068785,97398.0,97397.0,0.051354]
[1734786377271,0.15130218,97407.0,97406.0,0.051349]
[1734786377464,0.15130218,97407.0,97406.0,0.412149]
[1734786377770,0.15130218,97407.0,97406.0,0.52453022]
[1734786378365,0.051342,97420.0,97409.0,0.051347]
[1734786378576,0.15130218,97429.0,97417.0,0.3608]
[1734786378872,0.051343,97419.0,97417.0,0.3608]
[1734786379776,0.15130218,97429.0,97417.0,0.3608]
[1734786379974,0.051339,97425.0,97417.0,0.3608]
[1734786380273,0.051339,97425.0,97419.0,0.051342]
[1734786380573,0.0988,97439.0,97417.0,0.3628]
[1734786380771,0.0988,97439.0,97433.0,0.3608]
[1734786381072,0.150132,97439.0,97433.0,0.3608]
[1734786381377,0.051332,97438.0,97433.0,0.3608]
[1734786382271,0.01008832,97441.0,97433.0,0.3608]
[1734786382467,0.01008832,97441.0,97434.0,0.16318766]
[1734786382668,0.051323,97456.0,97440.0,0.3608]
[1734786382862,0.0913,97462.0,97453.0,0.3608]
[1734786383166,0.051318,97465.0,97461.0,0.3608]
[1734786383567,0.15130218,97473.0,97463.0,0.051319]
[1734786383763,0.15130218,97473.0,97464.0,0.051318]
[1734786383970,0.15130218,97473.0,97464.0,0.10856686]
[1734786384266,0.051302,97496.0,97478.0,0.051311]
[1734786384572,0.051302,97496.0,97494.0,0.3608]
[1734786385274,0.4608,97500.0,97480.0,0.51284071]
[1734786385478,0.3608,97492.0,97480.0,0.3608]
[1734786385669,0.051305,97490.0,97472.0,0.3608]
[1734786385867,0.051309,97482.0,97472.0,0.3608]
[1734786386169,0.3608,97484.0,97461.0,0.3608]
[1734786386372,0.3608,97474.0,97453.0,0.37109239]
[1734786386574,0.051321,97459.0,97453.0,0.3608]
[1734786386971,0.0975,97473.0,97453.0,0.3608]
[1734786387166,0.051324,97454.0,97453.0,0.3608]
[1734786387469,0.051324,97454.0,97452.0,0.0154]
[1734786389379,0.1005,97473.0,97453.0,0.46750803]
[1734786389583,0.051311,97479.0,97472.0,0.3608]
[1734786389780,0.051312,97477.0,97472.0,0.3608]
[1734786389976,0.051313,97476.0,97472.0,0.3608]
[1734786390483,0.051309,97482.0,97472.0,0.3608]
[1734786390683,0.0917,97490.0,97472.0,0.3608]
[1734786390885,0.05131,97480.0,97472.0,0.3608]
[1734786391203,0.051307,97486.0,97479.0,0.05131]
[1734786391388,0.0917,97490.0,97479.0,0.05131]
[1734786391583,0.051308,97484.0,97479.0,0.05131]
[1734786391780,0.007,97479.0,97472.0,0.3618]
[1734786392180,0.007,97479.0,97477.0,0.051311]
[1734786392488,0.008,97486.0,97479.0,0.001]
[1734786392884,0.008,97486.0,97484.0,0.051308]
[1734786393087,0.3608,97494.0,97480.0,0.3608]
[1734786393281,0.3608,97494.0,97486.0,0.051306]
[1734786393882,0.3608,97494.0,97489.0,0.051305]
[1734786394187,0.051304,97492.0,97490.0,0.3608]
[1734786394789,0.0936,97499.0,97488.0,0.3608]
[1734786394980,0.051305,97491.0,97488.0,0.3608]
[1734786395180,0.008,97494.0,97488.0,0.3608]
[1734786395381,0.008,97494.0,97488.0,0.412105]
[1734786395577,0.008,97494.0,97488.0,0.3608]
[1734786395881,0.051305,97490.0,97480.0,0.3608]
[1734786396296,0.051305,97490.0,97488.0,0.001]
[1734786397094,0.051305,97490.0,97480.0,0.3608]
[1734786397294,0.05131,97481.0,97480.0,0.3608]
[1734786398806,0.005,97481.0,97471.0,0.0154]
[1734786399103,0.051314,97472.0,97470.0,0.3608]
[1734786400201,0.005,97481.0,97470.0,0.3608]
[1734786400396,0.051311,97480.0,97477.0,0.051311]
[1734786400593,0.051311,97480.0,97470.0,0.3608]
[1734786400594,0.051311,97478.0,97470.0,0.412115]
[1734786400799,0.051311,97478.0,97471.0,0.051314]
[1734786401200,0.002,97472.0,97471.0,0.051314]
[1734786401703,0.055311,97478.0,97471.0,0.051314]
[1734786401895,0.055311,97478.0,97472.0,0.051314]
[1734786402298,0.051311,97478.0,97472.0,0.051314]
[1734786402497,0.051311,97478.0,97476.0,0.051312]
[1734786402907,0.051312,97476.0,97470.0,0.3608]
[1734786403108,0.051312,97476.0,97470.0,0.412115]
[1734786403407,0.004,97478.0,97470.0,0.412115]
[1734786403608,0.051314,97474.0,97470.0,0.412115]
[1734786404009,0.051314,97472.0,97470.0,0.3608]
[1734786405005,0.051314,97472.0,97468.0,0.051316]
[1734786406010,0.053314,97472.0,97468.0,0.051316]
[1734786406408,0.053314,97472.0,97461.0,0.3608]
[1734786406409,0.002,97472.0,97461.0,0.3608]
[1734786406614,0.051318,97466.0,97461.0,0.41212]
[1734786407500,0.051319,97464.0,97461.0,0.41212]
[1734786407703,0.41212,97462.0,97461.0,0.001]
[1734786407902,0.051331,97441.0,97440.0,0.00153923]
[1734786408509,0.051331,97441.0,97440.0,0.05287023]
[1734786409499,0.051331,97441.0,97440.0,0.05787023]
[1734786409913,0.3608,97454.0,97440.0,0.02193923]
[1734786410111,0.3608,97454.0,97446.0,0.3608]
[1734786410310,0.412124,97454.0,97453.0,0.051324]
[1734786410914,0.3608,97454.0,97446.0,0.3608]
[1734786411116,0.051325,97452.0,97450.0,0.051326]
[1734786411300,0.051327,97447.0,97446.0,0.3608]
[1734786411504,0.412124,97454.0,97450.0,0.051326]
[1734786411708,0.051325,97452.0,97450.0,0.051326]
[1734786412704,0.051327,97448.0,97446.0,0.3608]
[1734786413012,0.051327,97448.0,97446.0,0.412128]
[1734786413518,0.36156,97454.0,97449.0,0.051326]
[1734786414013,0.051326,97451.0,97449.0,0.051326]
[1734786414506,0.3608,97454.0,97452.0,0.051325]
[1734786414727,0.3608,97454.0,97447.0,0.051327]
[1734786414914,0.3618,97454.0,97447.0,0.051327]
[1734786415413,0.051327,97448.0,97446.0,0.3608]
[1734786416119,0.06166213,97448.0,97446.0,0.3608]
[1734786416621,0.06166213,97448.0,97440.0,0.00153923]
[1734786416622,0.051331,97441.0,97440.0,0.00153923]
[1734786417011,0.051335,97433.0,97432.0,7.939e-05]
[1734786418017,0.05288366,97433.0,97432.0,7.939e-05]
[1734786418714,0.05288366,97433.0,97432.0,0.00407939]
[1734786419615,0.05288366,97433.0,97432.0,0.00607939]
[1734786419821,0.00154866,97433.0,97432.0,0.36687939]
[1734786420518,0.15130218,97455.0,97432.0,0.48372731]
[1734786420722,0.15130218,97455.0,97454.0,0.3608]
[1734786421426,0.051318,97465.0,97462.0,0.051319]
[1734786421822,0.15130218,97472.0,97462.0,0.051319]
[1734786422024,0.15130218,97472.0,97454.0,0.3608]
[1734786422218,0.051319,97463.0,97457.0,0.051322]
[1734786422421,0.051319,97463.0,97458.0,0.051321]
[1734786422612,0.15204071,97470.0,97454.0,0.3608]
[1734786422818,0.001,97455.0,97454.0,0.3608]
[1734786423017,0.001,97455.0,97454.0,0.412124]
[1734786423918,0.051317,97468.0,97454.0,0.412124]
[1734786423919,0.001,97463.0,97454.0,0.3608]
[1734786424223,0.001,97463.0,97462.0,0.3608]
[1734786425128,0.004,97463.0,97462.0,0.3608]
[1734786426218,0.003,97463.0,97462.0,0.3608]
[1734786426728,0.0905517,97480.0,97462.0,0.3608]
[1734786426921,0.051319,97464.0,97462.0,0.3618]
[1734786427120,0.051319,97464.0,97462.0,0.3628]
[1734786427317,0.051319,97464.0,97462.0,0.3618]
[1734786427518,0.051319,97464.0,97462.0,0.001]
[1734786428025,0.051324,97453.0,97452.0,0.18411939]
[1734786429328,0.051324,97453.0,97438.0,0.051332]
[1734786429329,0.4513517,97457.0,97438.0,0.051332]
[1734786429527,0.051329,97444.0,97438.0,0.051332]
[1734786429722,0.7513517,97457.0,97433.0,0.3608]
[1734786429920,0.4513517,97457.0,97433.0,0.3608]
[1734786430121,0.051333,97436.0,97433.0,0.412134]
[1734786430327,0.051333,97436.0,97433.0,0.412654]
[1734786430515,0.46171007,97457.0,97433.0,0.36132]
[1734786430723,0.051331,97441.0,97438.0,0.004]
[1734786430928,0.051331,97441.0,97438.0,0.006]
[1734786431121,0.051331,97440.0,97438.0,0.002]
[1734786431924,0.051331,97440.0,97438.0,0.007]
[1734786433231,0.0932,97439.0,97438.0,0.005]
[1734786434128,0.0932,97439.0,97438.0,0.008]
[1734786434728,0.0932,97439.0,97438.0,0.009]
[1734786437023,0.3608,97439.0,97438.0,0.009]
[1734786437542,0.051331,97440.0,97438.0,0.009]
[1734786438429,0.051331,97440.0,97438.0,0.060332]
[1734786439541,0.051331,97440.0,97438.0,0.057332]
[1734786439743,0.12084901,97445.0,97444.0,0.051329]
[1734786440233,0.09063855,97447.0,97445.0,0.051328]
[1734786441032,0.09063855,97447.0,97445.0,0.148528]
[1734786441430,0.051321,97459.0,97457.0,0.051322]
[1734786441738,0.3608,97466.0,97455.0,0.3608]
[1734786441944,0.412118,97466.0,97455.0,0.3608]
[1734786442632,0.051318,97465.0,97461.0,0.05132]
[1734786442936,0.051318,97465.0,97463.0,0.051319]
[1734786444233,0.001,97466.0,97465.0,0.051318]
[1734786445444,0.001,97466.0,97455.0,0.3608]
[1734786445445,0.051323,97456.0,97455.0,0.3608]
[1734786445945,0.051325,97451.0,97449.0,0.1840386]
[1734786446536,0.051325,97451.0,97449.0,0.2353646]
[1734786447234,0.051323,97455.0,97453.0,0.051324]
[1734786448034,0.002,97456.0,97449.0,0.001]
[1734786448336,0.002,97456.0,97455.0,0.051323]
[1734786449538,0.09063855,97462.0,97449.0,0.001]
[1734786449746,0.051326,97450.0,97449.0,0.001]
[1734786449940,0.051326,97450.0,97442.0,0.3762]
[1734786449941,0.051326,97450.0,97448.0,0.2962629]
[1734786450145,0.002,97456.0,97449.0,0.10719407]
[1734786450443,0.002,97456.0,97455.0,0.412123]
[1734786450647,0.05442,97456.0,97455.0,0.412123]
[1734786451447,0.05642,97456.0,97455.0,0.412123]
[1734786452940,0.05442,97456.0,97455.0,0.412123]
[1734786453256,0.05642,97456.0,97455.0,0.412123]
[1734786454344,0.05642,97456.0,97455.0,0.3608]
[1734786456248,0.05642,97456.0,97448.0,0.051327]
[1734786456438,0.05642,97456.0,97449.0,0.051326]
[1734786456439,0.051325,97451.0,97449.0,0.051326]
[1734786457552,0.051328,97445.0,97443.0,0.54537389]
[1734786457847,0.051328,97445.0,97443.0,0.54485389]
[1734786458050,0.051328,97445.0,97443.0,0.3608]
[1734786459245,0.051328,97445.0,97443.0,0.3638]
[1734786460039,0.051328,97445.0,97443.0,0.003]
[1734786460444,0.051328,97445.0,97443.0,0.005]
[1734786462348,0.06162373,97445.0,97443.0,0.005]
[1734786464947,0.09063855,97448.0,97447.0,0.051327]
[1734786466154,0.09063855,97448.0,97447.0,0.052327]
[1734786466344,0.09063855,97448.0,97447.0,0.054327]
[1734786466546,0.051322,97458.0,97455.0,0.051323]
[1734786467049,0.09063855,97461.0,97455.0,0.051323]
[1734786467959,0.14195455,97469.0,97455.0,0.051323]